[Event "Late-Titled-Tuesday-Blitz-June-04-2024"]
[Site "Chess.com"]
[Date "2024.06.04"]
[Round "5"]
[White "Mops_2004"]
[Black "Szparu"]
[Result "1-0"]
[WhiteElo "2804"]
[BlackElo "2975"]
[TimeControl "180+1"]
[EndTime "14:57:02 PDT"]
[Termination "Mops_2004 won by resignation"]

1. g3 {[%clk 0:03:00.9]} 1... e5 {[%clk 0:02:55.6]} 2. c4 {[%clk 0:02:59.9]}
2... c6 {[%clk 0:02:55.3]} 3. Nf3 {[%clk 0:02:59.5]} 3... e4 {[%clk 0:02:55.8]}
4. Nd4 {[%clk 0:03:00]} 4... d5 {[%clk 0:02:56.3]} 5. cxd5 {[%clk 0:03:00.8]}
5... Nf6 {[%clk 0:02:56.2]} 6. Bg2 {[%clk 0:02:57.9]} 6... cxd5 {[%clk
0:02:55.9]} 7. d3 {[%clk 0:02:56.9]} 7... exd3 {[%clk 0:02:49]} 8. Qxd3 {[%clk
0:02:56]} 8... Nc6 {[%clk 0:02:48.8]} 9. O-O {[%clk 0:02:55.3]} 9... Be7 {[%clk
0:02:47]} 10. Nc3 {[%clk 0:02:54.1]} 10... h6 {[%clk 0:02:40.6]} 11. Bf4 {[%clk
0:02:50.7]} 11... O-O {[%clk 0:02:39.5]} 12. Rad1 {[%clk 0:02:47.9]} 12... Bg4
{[%clk 0:02:28.9]} 13. h3 {[%clk 0:02:45.9]} 13... Bh5 {[%clk 0:02:28.6]} 14.
Qb5 {[%clk 0:02:33.6]} 14... a6 {[%clk 0:01:44.5]} 15. Qxb7 {[%clk 0:02:32]}
15... Na5 {[%clk 0:01:36.7]} 16. Qc7 {[%clk 0:02:32]} 16... Rc8 {[%clk
0:01:27.1]} 17. Qxd8 {[%clk 0:02:26.4]} 17... Rfxd8 {[%clk 0:01:28]} 18. Be5
{[%clk 0:01:56]} 18... Nc4 {[%clk 0:01:25.4]} 19. Bxf6 {[%clk 0:01:52.6]} 19...
Bxf6 {[%clk 0:01:26.3]} 20. Nxd5 {[%clk 0:01:51.1]} 20... Nxb2 {[%clk
0:01:21.9]} 21. Nxf6+ {[%clk 0:01:38.4]} 21... gxf6 {[%clk 0:01:22.8]} 22. Rb1
{[%clk 0:01:38.3]} 22... Na4 {[%clk 0:01:16.5]} 23. Nc6 {[%clk 0:01:36]} 23...
Re8 {[%clk 0:01:14.3]} 24. e3 {[%clk 0:01:34.4]} 24... Nc3 {[%clk 0:01:10.5]}
25. Rb2 {[%clk 0:01:30.3]} 25... Bd1 {[%clk 0:01:03.7]} 26. Nd4 {[%clk
0:01:22.9]} 26... Rc7 {[%clk 0:00:55]} 27. Rb6 {[%clk 0:01:16.6]} 27... Ne2+
{[%clk 0:00:35.8]} 28. Kh2 {[%clk 0:00:59.1]} 28... Nc3 {[%clk 0:00:30.3]} 29.
Rxf6 {[%clk 0:00:57]} 29... Rb8 {[%clk 0:00:30.7]} 30. Rxa6 {[%clk 0:00:53.9]}
30... Rb2 {[%clk 0:00:30.9]} 31. a3 {[%clk 0:00:49.1]} 31... Ba4 {[%clk
0:00:30.4]} 32. Rxh6 {[%clk 0:00:46.5]} 32... Nb5 {[%clk 0:00:24.5]} 33. Nxb5
{[%clk 0:00:43.8]} 33... Bxb5 {[%clk 0:00:24.6]} 34. Rb6 {[%clk 0:00:38.8]}
34... Rcc2 {[%clk 0:00:23.6]} 35. Rg1 {[%clk 0:00:16.2]} 35... Rxf2 {[%clk
0:00:24.2]} 36. a4 {[%clk 0:00:14.1]} 36... Bxa4 {[%clk 0:00:17.8]} 37. Rxb2
{[%clk 0:00:15]} 37... Rxb2 {[%clk 0:00:18.2]} 38. g4 {[%clk 0:00:14.3]} 38...
Re2 {[%clk 0:00:18.4]} 39. e4 {[%clk 0:00:12.1]} 39... Re3 {[%clk 0:00:16.7]}
40. Rf1 {[%clk 0:00:09.4]} 40... Bc6 {[%clk 0:00:15.5]} 41. Rf4 {[%clk
0:00:09.5]} 41... Kg7 {[%clk 0:00:15.8]} 42. Kg1 {[%clk 0:00:09.5]} 42... Re2
{[%clk 0:00:14.9]} 43. Rf2 {[%clk 0:00:07.7]} 43... Re3 {[%clk 0:00:13.6]} 44.
Rf4 {[%clk 0:00:07.8]} 44... Re2 {[%clk 0:00:13.5]} 45. h4 {[%clk 0:00:07.6]}
45... Kf8 {[%clk 0:00:12.4]} 46. g5 {[%clk 0:00:07.4]} 46... Kg7 {[%clk
0:00:10]} 47. Kf1 {[%clk 0:00:07.7]} 47... Rb2 {[%clk 0:00:08.7]} 48. h5 {[%clk
0:00:08]} 48... Bb5+ {[%clk 0:00:07.6]} 49. Kg1 {[%clk 0:00:07.7]} 49... Bc6
{[%clk 0:00:08.1]} 50. Rf6 {[%clk 0:00:06.8]} 50... Bd7 {[%clk 0:00:05.7]} 51.
h6+ {[%clk 0:00:07]} 51... Kg8 {[%clk 0:00:06.1]} 52. Kf1 {[%clk 0:00:05.3]}
52... Be6 {[%clk 0:00:06.2]} 53. Rf4 {[%clk 0:00:04.9]} 53... Bc4+ {[%clk
0:00:05.8]} 54. Kg1 {[%clk 0:00:04.9]} 54... Kh7 {[%clk 0:00:05.3]} 55. Rf6
{[%clk 0:00:03.4]} 55... Be6 {[%clk 0:00:04.6]} 56. Bf3 {[%clk 0:00:03.7]} 56...
Rb4 {[%clk 0:00:03.1]} 57. Kf2 {[%clk 0:00:03.8]} 57... Rb5 {[%clk 0:00:02.2]}
58. g6+ {[%clk 0:00:03.2]} 58... fxg6 {[%clk 0:00:01.2]} 59. Rxe6 {[%clk
0:00:03.5]} 59... Kxh6 {[%clk 0:00:01.7]} 60. Ke3 {[%clk 0:00:03]} 60... Kg7
{[%clk 0:00:02.2]} 61. Rc6 {[%clk 0:00:03]} 61... Rb3+ {[%clk 0:00:02.7]} 62.
Kf4 {[%clk 0:00:03.2]} 62... g5+ {[%clk 0:00:03.3]} 63. Kg4 {[%clk 0:00:03.7]}
63... Kf7 {[%clk 0:00:03.5]} 64. e5 {[%clk 0:00:03.9]} 64... Re3 {[%clk
0:00:03.5]} 65. e6+ {[%clk 0:00:03.6]} 65... Ke7 {[%clk 0:00:03.5]} 66. Bd5
{[%clk 0:00:04.2]} 66... Re5 {[%clk 0:00:04]} 67. Rc7+ {[%clk 0:00:04.1]} 67...
Ke8 {[%clk 0:00:04.2]} 68. Rd7 {[%clk 0:00:04.3]} 68... Kf8 {[%clk 0:00:03.3]}
69. Kh5 {[%clk 0:00:03.3]} 69... Ke8 {[%clk 0:00:02.4]} 70. Kg4 {[%clk
0:00:03.6]} 70... Kf8 {[%clk 0:00:02.6]} 71. Bb3 {[%clk 0:00:03.9]} 71... Ke8
{[%clk 0:00:02.9]} 72. Rd3 {[%clk 0:00:04]} 72... Ke7 {[%clk 0:00:03.1]} 73. Rf3
{[%clk 0:00:04.1]} 73... Re4+ {[%clk 0:00:02.7]} 74. Kxg5 {[%clk 0:00:04]} 74...
Re5+ {[%clk 0:00:03.4]} 75. Kf4 {[%clk 0:00:04.1]} 75... Rb5 {[%clk 0:00:03.5]}
76. Rd3 {[%clk 0:00:04.2]} 76... Rb4+ {[%clk 0:00:03.5]} 77. Ke3 {[%clk
0:00:04.7]} 77... Rh4 {[%clk 0:00:03.3]} 78. Kd2 {[%clk 0:00:05]} 78... Rh2+
{[%clk 0:00:03.1]} 79. Kc3 {[%clk 0:00:05.5]} 79... Rh8 {[%clk 0:00:04]} 80.
Rd7+ {[%clk 0:00:05.8]} 80... Ke8 {[%clk 0:00:04.2]} 81. Rb7 {[%clk 0:00:06]}
81... Rh3+ {[%clk 0:00:04.8]} 82. Kb4 {[%clk 0:00:06.5]} 82... Rh4+ {[%clk
0:00:05.1]} 83. Bc4 {[%clk 0:00:07.2]} 83... Rh1 {[%clk 0:00:05.2]} 84. Kc5
{[%clk 0:00:07.6]} 84... Rd1 {[%clk 0:00:05.9]} 85. Bd5 {[%clk 0:00:07.7]} 85...
Rc1+ {[%clk 0:00:06.1]} 86. Kd6 {[%clk 0:00:08.1]} 86... Rc8 {[%clk 0:00:06.5]}
87. Bc6+ {[%clk 0:00:08.3]} 87... Kf8 {[%clk 0:00:06.3]} 88. e7+ {[%clk
0:00:08.8]} 88... Kg8 {[%clk 0:00:06.3]} 89. e8=Q+ {[%clk 0:00:09.4]} 1-0

[Event "Late-Titled-Tuesday-Blitz-June-04-2024"]
[Site "Chess.com"]
[Date "2024.06.04"]
[Round "5"]
[White "xakevicius91"]
[Black "Bugcrusher"]
[Result "0-1"]
[WhiteElo "2554"]
[BlackElo "2439"]
[TimeControl "180+1"]
[EndTime "14:57:25 PDT"]
[Termination "Bugcrusher won on time"]

1. e4 {[%clk 0:03:00.9]} 1... e6 {[%clk 0:02:52.3]} 2. d4 {[%clk 0:02:59.7]}
2... d5 {[%clk 0:02:52]} 3. Nd2 {[%clk 0:02:59.7]} 3... Nf6 {[%clk 0:02:47.3]}
4. e5 {[%clk 0:02:59.2]} 4... Nfd7 {[%clk 0:02:47.2]} 5. Bd3 {[%clk 0:03:00.1]}
5... c5 {[%clk 0:02:47.2]} 6. c3 {[%clk 0:03:00.7]} 6... Nc6 {[%clk 0:02:47.4]}
7. Ne2 {[%clk 0:03:00.4]} 7... cxd4 {[%clk 0:02:46.2]} 8. cxd4 {[%clk
0:03:01.3]} 8... f6 {[%clk 0:02:46.4]} 9. exf6 {[%clk 0:03:02.2]} 9... Nxf6
{[%clk 0:02:43.2]} 10. Nf3 {[%clk 0:03:01.9]} 10... Bd6 {[%clk 0:02:42.6]} 11.
O-O {[%clk 0:03:02.1]} 11... O-O {[%clk 0:02:42.5]} 12. Bf4 {[%clk 0:03:02.1]}
12... Bxf4 {[%clk 0:02:42.1]} 13. Nxf4 {[%clk 0:03:03]} 13... Ne4 {[%clk
0:02:42.3]} 14. Ne2 {[%clk 0:03:03.2]} 14... Ng5 {[%clk 0:02:40]} 15. Nxg5
{[%clk 0:02:47.7]} 15... Qxg5 {[%clk 0:02:39.6]} 16. Rc1 {[%clk 0:02:12]} 16...
Bd7 {[%clk 0:02:36.8]} 17. Bb1 {[%clk 0:02:05]} 17... Qf6 {[%clk 0:02:35.2]} 18.
Qd3 {[%clk 0:01:56.2]} 18... h6 {[%clk 0:02:26.5]} 19. a3 {[%clk 0:01:39.4]}
19... Be8 {[%clk 0:02:24.8]} 20. Qh7+ {[%clk 0:01:38.4]} 20... Kf7 {[%clk
0:02:24.4]} 21. b4 {[%clk 0:01:25]} 21... a6 {[%clk 0:02:22.8]} 22. a4 {[%clk
0:01:03]} 22... Rd8 {[%clk 0:02:18]} 23. b5 {[%clk 0:01:02.8]} 23... axb5 {[%clk
0:02:17.7]} 24. axb5 {[%clk 0:01:03.7]} 24... Nxd4 {[%clk 0:02:18]} 25. Nxd4
{[%clk 0:00:54.8]} 25... Qxd4 {[%clk 0:02:17.1]} 26. Rc7+ {[%clk 0:00:53.4]}
26... Rd7 {[%clk 0:02:16.8]} 27. Rc8 {[%clk 0:00:38.5]} 27... Ke7 {[%clk
0:02:12.5]} 28. Rcc1 {[%clk 0:00:26.2]} 28... Kd6 {[%clk 0:01:59.1]} 29. Rcd1
{[%clk 0:00:25.4]} 29... Qf6 {[%clk 0:01:55]} 30. Qd3 {[%clk 0:00:25.3]} 30...
Rc7 {[%clk 0:01:50.6]} 31. Qa3+ {[%clk 0:00:25]} 31... Kd7 {[%clk 0:01:44.9]}
32. Bd3 {[%clk 0:00:24.3]} 32... Bh5 {[%clk 0:01:33.9]} 33. b6 {[%clk 0:00:22]}
33... Rc6 {[%clk 0:01:25]} 34. Rc1 {[%clk 0:00:21.2]} 34... Rxc1 {[%clk
0:01:18.5]} 35. Qxc1 {[%clk 0:00:20.7]} 35... Rc8 {[%clk 0:01:14.2]} 36. Qa3
{[%clk 0:00:21]} 36... Qe7 {[%clk 0:01:11.3]} 37. Bb5+ {[%clk 0:00:20.7]} 37...
Kd8 {[%clk 0:01:11.5]} 38. Qg3 {[%clk 0:00:17.4]} 38... Be8 {[%clk 0:01:09]} 39.
Bd3 {[%clk 0:00:16.4]} 39... g5 {[%clk 0:01:06]} 40. h3 {[%clk 0:00:16.2]} 40...
Qc5 {[%clk 0:01:00.7]} 41. Re1 {[%clk 0:00:13.9]} 41... Qxb6 {[%clk 0:00:59.5]}
42. Qe5 {[%clk 0:00:13.5]} 42... Qc7 {[%clk 0:00:57.6]} 43. Qf6+ {[%clk
0:00:13.3]} 43... Qe7 {[%clk 0:00:57.1]} 44. Qxh6 {[%clk 0:00:13.7]} 44... Bd7
{[%clk 0:00:56.9]} 45. Bf5 {[%clk 0:00:13.7]} 45... Rc6 {[%clk 0:00:53.4]} 46.
Qh8+ {[%clk 0:00:11.9]} 46... Kc7 {[%clk 0:00:52.7]} 47. Bg4 {[%clk 0:00:12.3]}
47... Qd8 {[%clk 0:00:45.8]} 48. Qe5+ {[%clk 0:00:12.3]} 48... Kc8 {[%clk
0:00:43.3]} 49. Ra1 {[%clk 0:00:12.9]} 49... Ra6 {[%clk 0:00:41.7]} 50. Rc1+
{[%clk 0:00:11.9]} 50... Rc6 {[%clk 0:00:41.1]} 51. Ra1 {[%clk 0:00:12.3]} 51...
Ra6 {[%clk 0:00:40.7]} 52. Rc1+ {[%clk 0:00:10.4]} 52... Rc6 {[%clk 0:00:38.8]}
53. Rxc6+ {[%clk 0:00:06.7]} 53... bxc6 {[%clk 0:00:36.6]} 54. Bxe6 {[%clk
0:00:07.3]} 54... Bxe6 {[%clk 0:00:35.3]} 55. Qxe6+ {[%clk 0:00:08.2]} 55... Qd7
{[%clk 0:00:34.6]} 56. Qe5 {[%clk 0:00:08.6]} 56... d4 {[%clk 0:00:32.7]} 57.
Qxg5 {[%clk 0:00:08.1]} 57... d3 {[%clk 0:00:31.9]} 58. Qd2 {[%clk 0:00:08.3]}
58... Qd4 {[%clk 0:00:29.7]} 59. Kf1 {[%clk 0:00:08.1]} 59... c5 {[%clk
0:00:29.6]} 60. Ke1 {[%clk 0:00:03.4]} 60... c4 {[%clk 0:00:28.5]} 61. Qa5
{[%clk 0:00:03.5]} 61... Qe4+ {[%clk 0:00:26.9]} 62. Kf1 {[%clk 0:00:02.7]}
62... Qe2+ {[%clk 0:00:21.7]} 63. Kg1 {[%clk 0:00:03.2]} 63... d2 {[%clk
0:00:20.9]} 64. Qc5+ {[%clk 0:00:03.2]} 64... Kb7 {[%clk 0:00:20.8]} 65. Qb5+
{[%clk 0:00:03.5]} 65... Kc7 {[%clk 0:00:20.8]} 66. Qc5+ {[%clk 0:00:04]} 66...
Kd7 {[%clk 0:00:21]} 67. Qb5+ {[%clk 0:00:04.3]} 67... Kd6 {[%clk 0:00:20.9]}
68. Qb6+ {[%clk 0:00:04.5]} 68... Kd5 {[%clk 0:00:20.8]} 69. Qd8+ {[%clk
0:00:03.7]} 69... Ke4 {[%clk 0:00:20.7]} 70. Qe7+ {[%clk 0:00:02.3]} 70... Kd3
{[%clk 0:00:20.6]} 71. Qh7+ {[%clk 0:00:02.4]} 71... Qe4 {[%clk 0:00:20.3]} 72.
Qd7+ {[%clk 0:00:02.5]} 72... Kc2 {[%clk 0:00:20.3]} 73. Qa4+ {[%clk 0:00:02.7]}
73... Kc1 {[%clk 0:00:19.2]} 74. Qa3+ {[%clk 0:00:02.3]} 74... Kb1 {[%clk
0:00:18.7]} 75. Qb4+ {[%clk 0:00:02.6]} 75... Ka2 {[%clk 0:00:18.7]} 76. Qxd2+
{[%clk 0:00:02.2]} 76... Kb3 {[%clk 0:00:17.9]} 77. Qd1+ {[%clk 0:00:01.6]}
77... Kb2 {[%clk 0:00:18]} 78. Qd2+ {[%clk 0:00:01.9]} 78... Kb3 {[%clk
0:00:18.2]} 79. Qd1+ {[%clk 0:00:01.8]} 79... Qc2 {[%clk 0:00:18.2]} 80. Qd8
{[%clk 0:00:01.1]} 80... c3 {[%clk 0:00:18]} 81. Qb6+ {[%clk 0:00:01.3]} 81...
Ka2 {[%clk 0:00:18]} 82. Qa5+ {[%clk 0:00:01.5]} 82... Kb1 {[%clk 0:00:17.8]}
83. Qb4+ {[%clk 0:00:01.7]} 83... Qb2 {[%clk 0:00:17.8]} 84. Qe4+ {[%clk
0:00:01.7]} 84... c2 {[%clk 0:00:17.6]} 85. h4 {[%clk 0:00:02.1]} 85... Ka2
{[%clk 0:00:14.9]} 86. Qd5+ {[%clk 0:00:01.9]} 86... Qb3 {[%clk 0:00:14]} 87.
Qd2 {[%clk 0:00:01.5]} 87... Kb1 {[%clk 0:00:13.5]} 0-1

[Event "Late-Titled-Tuesday-Blitz-June-04-2024"]
[Site "Chess.com"]
[Date "2024.06.04"]
[Round "5"]
[White "Crasyhealer"]
[Black "Lennis93"]
[Result "1/2-1/2"]
[WhiteElo "2534"]
[BlackElo "2731"]
[TimeControl "180+1"]
[EndTime "14:57:30 PDT"]
[Termination "Game drawn by 50-move rule"]

1. d4 {[%clk 0:02:52.6]} 1... Nf6 {[%clk 0:02:59]} 2. c4 {[%clk 0:02:52.9]} 2...
c5 {[%clk 0:02:59.1]} 3. d5 {[%clk 0:02:52.9]} 3... e6 {[%clk 0:02:59.7]} 4. Nc3
{[%clk 0:02:52.3]} 4... exd5 {[%clk 0:03:00.6]} 5. cxd5 {[%clk 0:02:53.2]} 5...
d6 {[%clk 0:03:00.6]} 6. e4 {[%clk 0:02:53.7]} 6... a6 {[%clk 0:03:01.2]} 7. a4
{[%clk 0:02:53.5]} 7... g6 {[%clk 0:03:01.6]} 8. Nf3 {[%clk 0:02:53.9]} 8... Bg7
{[%clk 0:03:02.1]} 9. Bd3 {[%clk 0:02:54.6]} 9... O-O {[%clk 0:03:02.6]} 10. O-O
{[%clk 0:02:55.2]} 10... Bg4 {[%clk 0:03:03.1]} 11. h3 {[%clk 0:02:54.7]} 11...
Bxf3 {[%clk 0:03:03.3]} 12. Qxf3 {[%clk 0:02:55.6]} 12... Nbd7 {[%clk
0:03:03.4]} 13. Bf4 {[%clk 0:02:55.9]} 13... Qe7 {[%clk 0:03:02.1]} 14. Qg3
{[%clk 0:02:55.1]} 14... Ne8 {[%clk 0:03:00.6]} 15. a5 {[%clk 0:02:53.4]} 15...
Rc8 {[%clk 0:02:54.8]} 16. Rfe1 {[%clk 0:02:50.8]} 16... c4 {[%clk 0:02:54.8]}
17. Bc2 {[%clk 0:02:50.9]} 17... Ne5 {[%clk 0:02:54]} 18. Ra4 {[%clk 0:02:46.7]}
18... Rc5 {[%clk 0:02:52.6]} 19. Be3 {[%clk 0:02:45.2]} 19... Rc8 {[%clk
0:02:50.2]} 20. f4 {[%clk 0:02:44.8]} 20... Nd3 {[%clk 0:02:49.3]} 21. Bxd3
{[%clk 0:02:41.8]} 21... cxd3 {[%clk 0:02:50.2]} 22. Bd4 {[%clk 0:02:40.5]}
22... Bxd4+ {[%clk 0:02:40.2]} 23. Rxd4 {[%clk 0:02:41.4]} 23... Rc5 {[%clk
0:02:40.2]} 24. Qxd3 {[%clk 0:02:18.5]} 24... Rxa5 {[%clk 0:02:39.2]} 25. b4
{[%clk 0:02:18]} 25... Ra3 {[%clk 0:02:37.3]} 26. Qd2 {[%clk 0:02:18]} 26... Qc7
{[%clk 0:02:34.4]} 27. Rc1 {[%clk 0:02:18]} 27... Qb6 {[%clk 0:02:31.1]} 28. Kh2
{[%clk 0:02:12.1]} 28... Nc7 {[%clk 0:02:27.8]} 29. Rc4 {[%clk 0:01:59.3]} 29...
Nb5 {[%clk 0:02:19.7]} 30. Qb2 {[%clk 0:01:56.2]} 30... Rxc3 {[%clk 0:02:09.5]}
31. R1xc3 {[%clk 0:01:55.2]} 31... Nxc3 {[%clk 0:02:09.7]} 32. Qxc3 {[%clk
0:01:56.1]} 32... Qf2 {[%clk 0:02:04.1]} 33. e5 {[%clk 0:01:54.5]} 33... b5
{[%clk 0:01:52.3]} 34. Re4 {[%clk 0:01:48.3]} 34... dxe5 {[%clk 0:01:48.5]} 35.
fxe5 {[%clk 0:01:47.6]} 35... Qf5 {[%clk 0:01:43.7]} 36. Qd4 {[%clk 0:01:46.2]}
36... Rc8 {[%clk 0:01:43.5]} 37. Rf4 {[%clk 0:01:44.6]} 37... Rc4 {[%clk
0:01:39.6]} 38. Rxf5 {[%clk 0:01:30.9]} 38... Rxd4 {[%clk 0:01:39.1]} 39. Rf6
{[%clk 0:01:31.4]} 39... Rxd5 {[%clk 0:01:39.7]} 40. Rxa6 {[%clk 0:01:32.1]}
40... Rxe5 {[%clk 0:01:40.2]} 41. Rb6 {[%clk 0:01:32.2]} 41... h5 {[%clk
0:01:39.5]} 42. Kg3 {[%clk 0:01:32.5]} 42... Kg7 {[%clk 0:01:36.8]} 43. Kf4
{[%clk 0:01:32.8]} 43... f6 {[%clk 0:01:35.5]} 44. Rb7+ {[%clk 0:01:30]} 44...
Kh6 {[%clk 0:01:35.7]} 45. Rb6 {[%clk 0:01:30.9]} 45... g5+ {[%clk 0:01:36.2]}
46. Kf3 {[%clk 0:01:29.7]} 46... Kg6 {[%clk 0:01:36.8]} 47. g4 {[%clk
0:01:29.5]} 47... hxg4+ {[%clk 0:01:32.6]} 48. hxg4 {[%clk 0:01:30.4]} 48... Rd5
{[%clk 0:01:33.1]} 49. Ke4 {[%clk 0:01:29.6]} 49... Re5+ {[%clk 0:01:29.3]} 50.
Kf3 {[%clk 0:01:29.9]} 50... Kf7 {[%clk 0:01:27.4]} 51. Rb7+ {[%clk 0:01:28.3]}
51... Kf8 {[%clk 0:01:07.6]} 52. Rb8+ {[%clk 0:01:25.3]} 52... Ke7 {[%clk
0:01:07.2]} 53. Rb7+ {[%clk 0:01:25.8]} 53... Ke8 {[%clk 0:00:24.4]} 54. Rb6
{[%clk 0:01:20.8]} 54... f5 {[%clk 0:00:24.1]} 55. gxf5 {[%clk 0:01:14.4]} 55...
Rxf5+ {[%clk 0:00:25]} 56. Kg4 {[%clk 0:01:14.1]} 56... Rf4+ {[%clk 0:00:23.5]}
57. Kxg5 {[%clk 0:01:13.3]} 57... Rxb4 {[%clk 0:00:24.4]} 58. Rb7 {[%clk
0:01:11.4]} 58... Kd8 {[%clk 0:00:24.2]} 59. Kf5 {[%clk 0:01:09.7]} 59... Kc8
{[%clk 0:00:24.8]} 60. Re7 {[%clk 0:01:08.4]} 60... Rb1 {[%clk 0:00:19.8]} 61.
Rh7 {[%clk 0:01:02.2]} 61... Re1 {[%clk 0:00:19.2]} 62. Kf4 {[%clk 0:00:55.8]}
62... Kb8 {[%clk 0:00:16.4]} 63. Kf3 {[%clk 0:00:55.5]} 63... Re6 {[%clk
0:00:16.5]} 64. Rh5 {[%clk 0:00:51.3]} 64... Rb6 {[%clk 0:00:15.9]} 65. Ke3
{[%clk 0:00:51.7]} 65... b4 {[%clk 0:00:16.5]} 66. Kd2 {[%clk 0:00:50.6]} 66...
Kb7 {[%clk 0:00:12.7]} 67. Kc2 {[%clk 0:00:50.6]} 67... Rg6 {[%clk 0:00:11]} 68.
Kb3 {[%clk 0:00:50.7]} 68... Rg4 {[%clk 0:00:11.3]} 69. Rb5+ {[%clk 0:00:50.3]}
69... Kc6 {[%clk 0:00:12]} 70. Rxb4 {[%clk 0:00:51.2]} 70... Rg3+ {[%clk
0:00:12.1]} 71. Kc2 {[%clk 0:00:46.7]} 71... Kc5 {[%clk 0:00:12.3]} 72. Rh4
{[%clk 0:00:47.2]} 72... Rg2+ {[%clk 0:00:12.4]} 73. Kd3 {[%clk 0:00:47.8]}
73... Rg3+ {[%clk 0:00:12.9]} 74. Ke4 {[%clk 0:00:48.4]} 74... Rc3 {[%clk
0:00:13]} 75. Rh8 {[%clk 0:00:48.8]} 75... Rc4+ {[%clk 0:00:12.8]} 76. Ke5
{[%clk 0:00:49.1]} 76... Kb4 {[%clk 0:00:13.1]} 77. Rb8+ {[%clk 0:00:49.3]}
77... Kc3 {[%clk 0:00:13.5]} 78. Rg8 {[%clk 0:00:49.5]} 78... Ra4 {[%clk
0:00:13.7]} 79. Rg3+ {[%clk 0:00:49.8]} 79... Kd2 {[%clk 0:00:13.4]} 80. Rg2+
{[%clk 0:00:49.7]} 80... Ke3 {[%clk 0:00:13.3]} 81. Rb2 {[%clk 0:00:49.7]} 81...
Ra5+ {[%clk 0:00:13]} 82. Kd6 {[%clk 0:00:50.3]} 82... Kd4 {[%clk 0:00:13.3]}
83. Rh2 {[%clk 0:00:50.8]} 83... Ra6+ {[%clk 0:00:13.3]} 84. Kc7 {[%clk
0:00:50.8]} 84... Kc5 {[%clk 0:00:13.2]} 85. Rh5+ {[%clk 0:00:51.3]} 85... Kc4
{[%clk 0:00:12.9]} 86. Rh4+ {[%clk 0:00:51.7]} 86... Kd5 {[%clk 0:00:12.2]} 87.
Kb7 {[%clk 0:00:52.6]} 87... Rg6 {[%clk 0:00:11.7]} 88. Rh5+ {[%clk 0:00:53]}
88... Kd6 {[%clk 0:00:12.1]} 89. Rh1 {[%clk 0:00:53.1]} 89... Rg2 {[%clk
0:00:12]} 90. Rd1+ {[%clk 0:00:52.6]} 90... Kc5 {[%clk 0:00:12.2]} 91. Rc1+
{[%clk 0:00:53.3]} 91... Kb5 {[%clk 0:00:12.3]} 92. Kc7 {[%clk 0:00:53.7]} 92...
Rd2 {[%clk 0:00:11.3]} 93. Rb1+ {[%clk 0:00:52.9]} 93... Kc5 {[%clk 0:00:11.7]}
94. Rh1 {[%clk 0:00:53.6]} 94... Rd5 {[%clk 0:00:10.7]} 95. Ra1 {[%clk
0:00:53.6]} 95... Rd2 {[%clk 0:00:08.8]} 96. Ra5+ {[%clk 0:00:53.1]} 96... Kb4
{[%clk 0:00:08.1]} 97. Rh5 {[%clk 0:00:54]} 97... Rc2+ {[%clk 0:00:08.3]} 98.
Kb6 {[%clk 0:00:54.3]} 98... Rb2 {[%clk 0:00:08]} 99. Rb5+ {[%clk 0:00:54.6]}
99... Kc3 {[%clk 0:00:08]} 100. Kc5 {[%clk 0:00:55]} 100... Rh2 {[%clk
0:00:06.3]} 101. Rb7 {[%clk 0:00:54.9]} 101... Rh5+ {[%clk 0:00:06.5]} 102. Kd6
{[%clk 0:00:55.5]} 102... Kc4 {[%clk 0:00:06.5]} 103. Rb1 {[%clk 0:00:54.2]}
103... Rh6+ {[%clk 0:00:05]} 104. Ke5 {[%clk 0:00:54.7]} 104... Rh5+ {[%clk
0:00:05.5]} 105. Kf4 {[%clk 0:00:55.3]} 105... Rh4+ {[%clk 0:00:05.8]} 106. Kg5
{[%clk 0:00:55.9]} 106... Re4 {[%clk 0:00:05.9]} 107. Ra1 {[%clk 0:00:56.4]}
107... Kd5 {[%clk 0:00:06.1]} 108. Ra5+ {[%clk 0:00:55.3]} 108... Ke6 {[%clk
0:00:06.4]} 109. Ra6+ {[%clk 0:00:54.9]} 109... Ke5 {[%clk 0:00:06.9]} 110. Ra8
{[%clk 0:00:54.8]} 110... Rd4 {[%clk 0:00:06.5]} 111. Re8+ {[%clk 0:00:55.3]}
111... Kd6 {[%clk 0:00:05.5]} 112. Kf5 {[%clk 0:00:55.8]} 112... Rd5+ {[%clk
0:00:04.4]} 113. Kf4 {[%clk 0:00:55.4]} 113... Rb5 {[%clk 0:00:04.7]} 114. Rd8+
{[%clk 0:00:55.4]} 114... Ke7 {[%clk 0:00:04.8]} 115. Rd1 {[%clk 0:00:56.1]}
115... Ke6 {[%clk 0:00:04.6]} 116. Ra1 {[%clk 0:00:55.3]} 116... Rb4+ {[%clk
0:00:04.6]} 117. Ke3 {[%clk 0:00:55.9]} 117... Kd5 {[%clk 0:00:04.6]} 118. Ra5+
{[%clk 0:00:56.3]} 118... Kc4 {[%clk 0:00:05.1]} 119. Ra8 {[%clk 0:00:56.3]}
119... Rb5 {[%clk 0:00:05]} 120. Ke4 {[%clk 0:00:56.2]} 1/2-1/2